[Event "15th Lazio Festival 2022"]
[Site "Rome"]
[Date "2022.01.05"]
[Round "5.6"]
[White "Giri, Andrea"]
[Black "Maldonado, Stefano"]
[Result "1/2-1/2"]
[ECO "C85"]
[WhiteElo "1560"]
[BlackElo "1916"]
[Annotator "ChessBase"]
[PlyCount "120"]
[EventDate "2022.01.02"]
[EventType "swiss"]
[EventCountry "ITA"]
[SourceTitle "playchess.com"]
[Source "ChessBase"]
[SourceQuality "1"]
[TimeControl "5400+30"]

1. e4 {[%emt 1:31:00]} e5 {[%emt 1:31:00]} 2. Nf3 {[%emt 0:00:30]} Nc6 {[%emt 0:00:30]} 3. Bb5 {[%emt 0:00:30]} a6 {[%emt 0:00:30]} 4. Ba4 {[%emt 0:00:30]} Nf6 {[%emt 0:00:30]} 5. O-O {[%emt 0:00:30]} Be7 {[%emt 0:00:30]} 6. Bxc6 {[%emt 0:00:30]} dxc6 {[%emt 0:00:30]} 7. Qe1 {[%emt 0:00:30]} Qd6 {[%emt 0:00:30]} 8. d4 {[%emt 0:00:30]} Nd7 {[%emt 0:00:30]} 9. c3 {[%emt 0:00:30]} f6 {[%emt 0:00:30]} 10. Be3 {[%emt 0:00:30]} c5 {[%emt 0:00:30]} 11. Qe2 {[%emt 0:00:30]} cxd4 {[%emt 0:00:30]} 12. cxd4 {[%emt 0:00:30]} c5 {[%emt 0:00:30]} 13. d5 {[%emt 0:00:30]} g6 {[%emt 0:00:30]} 14. Nfd2 {[%emt 0:00:30]} f5 {[%emt 0:00:30]} 15. f3 {[%emt 0:00:30]} f4 {[%emt 0:00:30]} 16. Bf2 {[%emt 0:00:30]} g5 {[%emt 0:00:30]} 17. a4 {[%emt 0:00:30]} h5 {[%emt 0:00:30]} 18. Nc3 {[%emt 0:00:30]} Qg6 {[%emt 0:00:30]} 19. h3 {[%emt 0:00:30]} g4 {[%emt 0:00:30]} 20. fxg4 {[%emt 0:00:30]} Nf6 {[%emt 0:00:30]} 21. g5 {[%emt 0:00:30]} Qxg5 {[%emt 0:00:30]} 22. Nf3 {[%emt 0:00:30]} Qg7 {[%emt 0:00:30]} 23. Kh1 {[%emt 0:00:30]} Bd6 {[%emt 0:00:30]} 24. Qc4 {[%emt 0:00:30]} Qe7 {[%emt 0:00:30]} 25. a5 {[%emt 0:00:30]} Rb8 {[%emt 0:00:30]} 26. Na4 {[%emt 0:00:30]} Bd7 {[%emt 0:00:30]} 27. Nxc5 {[%emt 0:00:30]} Bb5 {[%emt 0:00:30]} 28. Qc2 {[%emt 0:00:30]} Bxf1 {[%emt 0:00:30]} 29. Rxf1 {[%emt 0:00:30]} Qc7 {[%emt 0:00:30]} 30. Qa4+ {[%emt 0:00:30]} Ke7 {[%emt 0:00:30]} 31. Nd3 {[%emt 0:00:30]} Rhc8 {[%emt 0:00:30]} 32. Bh4 {[%emt 0:00:30]} Qc4 {[%emt 0:00:30]} 33. Bxf6+ {[%emt 0:00:30]} Kxf6 {[%emt 0:00:30]} 34. Qd7 {[%emt 0:00:30]} Qc7 {[%emt 0:00:30]} 35. Qe6+ {[%emt 0:00:30]} Kg7 {[%emt 0:00:30]} 36. Ndxe5 {[%emt 0:00:30]} Bxe5 {[%emt 0:00:30]} 37. Nxe5 {[%emt 0:00:30]} Rf8 {[%emt 0:00:30]} 38. Qg6+ {[%emt 0:00:30]} Kh8 {[%emt 0:00:30]} 39. Qxh5+ {[%emt 0:00:30]} Kg8 {[%emt 0:00:30]} 40. Qg5+ {[%emt 0:00:30]} Kh7 {[%emt 0:00:30]} 41. Kh2 {[%emt 0:00:30]} Rbe8 {[%emt 0:00:30]} 42. Qg6+ {[%emt 0:00:30]} Kh8 {[%emt 0:00:30]} 43. Qh6+ {[%emt 0:00:30]} Kg8 {[%emt 0:00:30]} 44. Qg6+ {[%emt 0:00:30]} Qg7 {[%emt 0:00:30]} 45. Qxg7+ {[%emt 0:00:30]} Kxg7 {[%emt 0:00:30]} 46. Nd7 {[%emt 0:00:30]} Rf7 {[%emt 0:00:30]} 47. Nc5 {[%emt 0:00:30]} Kh6 {[%emt 0:00:30]} 48. d6 {[%emt 0:00:30]} Rd8 {[%emt 0:00:30]} 49. e5 {[%emt 0:00:30]} Rf5 {[%emt 0:00:30]} 50. Nxb7 {[%emt 0:00:30]} Rd7 {[%emt 0:00:30]} 51. Nc5 {[%emt 0:00:30]} Rd8 {[%emt 0:00:30]} 52. Nd3 {[%emt 0:00:30]} Kg5 {[%emt 0:00:30]} 53. Re1 {[%emt 0:00:30]} f3 {[%emt 0:00:30]} 54. gxf3 {[%emt 0:00:30]} Rxf3 {[%emt 0:00:30]} 55. Nc5 {[%emt 0:00:30]} Kf5 {[%emt 0:00:30]} 56. Kg2 {[%emt 0:00:30]} Rf4 {[%emt 0:00:30]} 57. d7 {[%emt 0:00:30]} Rg8+ {[%emt 0:00:30]} 58. Kh2 {[%emt 0:00:30]} Rf2+ {[%emt 0:00:30]} 59. Kh1 {[%emt 0:00:30]} Rf3 {[%emt 0:00:30]} 60. Kh2 {[%emt 0:00:30]} Rf2+ {[%emt 0:00:30]} 1/2-1/2

[Event "15th Lazio Festival 2022"]
[Site "Rome"]
[Date "2022.01.06"]
[Round "6.3"]
[White "Silici, Renato"]
[Black "Corvi, Marco"]
[Result "0-1"]
[ECO "A29"]
[WhiteElo "1727"]
[BlackElo "2288"]
[Annotator "ChessBase"]
[PlyCount "82"]
[EventDate "2022.01.02"]
[EventType "swiss"]
[EventCountry "ITA"]
[SourceTitle "playchess.com"]
[Source "ChessBase"]
[SourceQuality "1"]
[TimeControl "5400+30"]

1. c4 {[%emt 0:00:01]} e5 {[%emt 0:00:14]} 2. Nc3 {[%emt 0:00:08]} Nf6 {[%emt 0:01:55]} 3. Nf3 {[%emt 0:00:12]} Nc6 {[%emt 0:00:03]} 4. g3 {[%emt 0:00:49]} d5 {[%emt 0:00:21]} 5. cxd5 {[%emt 0:01:32]} Nxd5 {[%emt 0:00:03]} 6. Bg2 {[%emt 0:00:38]} Nb6 {[%emt 0:00:04]} 7. d3 {[%emt 0:00:36]} Be7 {[%emt 0:00:13]} 8. O-O {[%emt 0:00:36]} O-O {[%emt 0:00:07]} 9. a3 {[%emt 0:00:25]} Be6 {[%emt 0:00:08]} 10. b4 {[%emt 0:05:41]} a5 {[%emt 0:00:10]} 11. b5 {[%emt 0:03:43]} Nd4 {[%emt 0:00:39]} 12. Nxd4 {[%emt 0:04:00]} exd4 {[%emt 0:00:05]} 13. Na4 {[%emt 0:04:37]} Bd5 {[%emt 0:06:49]} 14. Nxb6 {[%emt 0:03:16]} cxb6 {[%emt 0:01:15]} 15. Bh3 {[%emt 0:03:14]} Re8 {[%emt 0:06:38]} 16. Bb2 {[%emt 0:05:02]} Bc5 {[%emt 0:02:29]} 17. Re1 {[%emt 0:03:27]} a4 {[%emt 0:02:05]} 18. Bg2 {[%emt 0:11:42]} Bxg2 {[%emt 0:01:28]} 19. Kxg2 {[%emt 0:00:04]} Qd7 {[%emt 0:02:15]} 20. Rb1 {[%emt 0:06:41]} Qxb5 {[%emt 0:01:20]} 21. Qc1 {[%emt 0:07:33]} Qd7 {[%emt 0:02:25]} 22. Qf4 {[%emt 0:01:47]} Re6 {[%emt 0:01:37]} 23. Qg4 {[%emt 0:01:11]} h5 {[%emt 0:05:29]} 24. Qg5 {[%emt 0:05:23]} Rg6 {[%emt 0:01:04]} 25. Qf4 {[%emt 0:02:10]} Re8 {[%emt 0:02:36]} 26. h3 {[%emt 0:00:30]} Rge6 {[%emt 0:04:58]} 27. Qf3 {[%emt 0:08:49]} h4 {[%emt 0:01:33]} 28. Rbd1 {[%emt 0:05:15]} Rf6 {[%emt 0:06:24]} 29. Qg4 {[%emt 0:00:47]} Qc6+ {[%emt 0:02:16]} 30. Kg1 {[%emt 0:00:09]} hxg3 {[%emt 0:00:32]} 31. fxg3 {[%emt 0:00:10]} Rg6 {[%emt 0:00:50]} 32. Qf3 {[%emt 0:00:39]} Qxf3 {[%emt 0:02:50]} 33. exf3 {[%emt 0:00:10]} Rxe1+ {[%emt 0:00:30]} 34. Rxe1 {[%emt 0:00:30]} Rxg3+ {[%emt 0:00:30]} 35. Kf2 {[%emt 0:00:30]} Rxh3 {[%emt 0:00:30]} 36. Kg2 {[%emt 0:00:30]} Rh6 {[%emt 0:00:30]} 37. Re8+ {[%emt 0:00:00]} Kh7 {[%emt 0:00:00]} 38. Rd8 {[%emt 0:01:22]} Rd6 {[%emt 0:00:00]} 39. Rb8 {[%emt 0:01:58]} Re6 {[%emt 0:00:18]} 40. Bc1 {[%emt 0:00:39]} Re2+ {[%emt 0:00:54]} 41. Kg3 {[%emt 0:00:47]} Bd6+ {[%emt 0:46:53]} 0-1

[Event "15th Lazio Festival 2022"]
[Site "Rome"]
[Date "2022.01.06"]
[Round "6.4"]
[White "Di Maulo, Alessandra"]
[Black "Zotti, Enrico"]
[Result "0-1"]
[ECO "B53"]
[WhiteElo "1810"]
[BlackElo "1829"]
[Annotator "NA"]
[PlyCount "70"]
[EventDate "2022.01.02"]
[EventType "swiss"]
[EventCountry "ITA"]
[SourceTitle "playchess.com"]
[Source "ChessBase"]
[SourceQuality "1"]
[TimeControl "5400+30"]

1. e4 {[%emt 0:00:02]} c5 {[%emt 0:00:09]} 2. Nf3 {[%emt 0:00:05]} d6 {[%emt 0:00:08]} 3. d4 {[%emt 0:00:10]} cxd4 {[%emt 0:00:08]} 4. Qxd4 {[%emt 0:00:06]} Nc6 {[%emt 0:00:15]} 5. Qe3 {[%emt 0:00:07]} Nf6 {[%emt 0:00:30]} 6. Be2 {[%emt 0:00:11]} e6 {[%emt 0:00:19]} 7. c4 {[%emt 0:00:11]} Be7 {[%emt 0:00:17]} 8. O-O {[%emt 0:00:47]} O-O {[%emt 0:00:16]} 9. Nc3 {[%emt 0:01:35]} b6 {[%emt 0:00:39]} 10. Rd1 {[%emt 0:01:39]} Qc7 {[%emt 0:00:21]} 11. b3 {[%emt 0:02:03]} Bb7 {[%emt 0:00:30]} 12. Bb2 {[%emt 0:00:34]} Rad8 {[%emt 0:00:51]} 13. Rac1 {[%emt 0:02:09]} Ne5 {[%emt 0:00:51]} 14. h3 {[%emt 0:02:27]} Nxf3+ {[%emt 0:10:18]} 15. Bxf3 {[%emt 0:00:12]} Qc5 {[%emt 0:01:18]} 16. Qd2 {[%emt 0:08:05]} Nd7 {[%emt 0:07:31]} 17. Na4 {[%emt 0:27:52]} Qg5 {[%emt 0:02:21]} 18. Qxg5 {[%emt 0:12:25]} Bxg5 {[%emt 0:00:11]} 19. Rc3 {[%emt 0:02:57]} Ne5 {[%emt 0:00:42]} 20. Ba3 {[%emt 0:00:04]} Be7 {[%emt 0:04:49]} 21. Re1 {[%emt 0:00:26]} Rd7 {[%emt 0:05:13]} 22. Bd1 {[%emt 0:00:39]} Rc8 {[%emt 0:01:35]} 23. f4 {[%emt 0:08:53]} Ng6 {[%emt 0:00:25]} 24. Bc1 {[%emt 0:01:48]} Bf6 {[%emt 0:04:43]} 25. Rc2 {[%emt 0:00:22]} Bd4+ {[%emt 0:01:43]} 26. Kh1 {[%emt 0:00:38]} f5 {[%emt 0:00:36]} 27. Rd2 {[%emt 0:10:46]} e5 {[%emt 0:06:55]} 28. fxe5 {[%emt 0:01:13]} dxe5 {[%emt 0:02:11]} 29. Bb2 {[%emt 0:02:59]} Bxe4 {[%emt 0:00:38]} 30. Rxe4 {[%emt 0:01:22]} fxe4 {[%emt 0:00:17]} 31. Bg4 {[%emt 0:00:02]} Rcd8 {[%emt 0:01:32]} 32. Bxd7 {[%emt 0:01:23]} Rxd7 {[%emt 0:00:13]} 33. Nc3 {[%emt 0:01:51]} e3 {[%emt 0:00:32]} 34. Rd1 {[%emt 0:00:46]} Nf4 {[%emt 0:00:15]} 35. Na4 {[%emt 0:09:35]} Nd3 {[%emt 0:03:05]} 0-1

[Event "15th Lazio Festival 2022"]
[Site "Rome"]
[Date "2022.01.06"]
[Round "6.5"]
[White "Brozzi, Danilo"]
[Black "Maxion, Dirk"]
[Result "1-0"]
[ECO "E70"]
[WhiteElo "1728"]
[BlackElo "2089"]
[Annotator "ChessBase"]
[PlyCount "57"]
[EventDate "2022.01.02"]
[EventType "swiss"]
[EventCountry "ITA"]
[SourceTitle "playchess.com"]
[Source "ChessBase"]
[SourceQuality "1"]
[TimeControl "5400+30"]

1. d4 {[%emt 0:00:02]} Nf6 {[%emt 0:02:54]} 2. c4 {[%emt 0:00:20]} g6 {[%emt 0:02:47]} 3. Nc3 {[%emt 0:00:06]} Bg7 {[%emt 0:00:53]} 4. e4 {[%emt 0:00:06]} d6 {[%emt 0:00:10]} 5. Nge2 {[%emt 0:00:02]} O-O {[%emt 0:04:13]} 6. Ng3 {[%emt 0:00:17]} c5 {[%emt 0:02:03]} 7. d5 {[%emt 0:00:22]} e6 {[%emt 0:00:11]} 8. Be2 {[%emt 0:02:30]} exd5 {[%emt 0:00:13]} 9. exd5 {[%emt 0:00:38]} Re8 {[%emt 0:05:58]} 10. Bf4 {[%emt 0:00:32]} a6 {[%emt 0:00:51]} 11. Qd2 {[%emt 0:03:14]} Ng4 {[%emt 0:07:06]} 12. f3 {[%emt 0:01:13]} Ne5 {[%emt 0:00:17]} 13. O-O-O {[%emt 0:00:12]} b5 {[%emt 0:02:17]} 14. cxb5 {[%emt 0:02:48]} axb5 {[%emt 0:04:24]} 15. Bxb5 {[%emt 0:00:12]} Bd7 {[%emt 0:00:20]} 16. Bc6 {[%emt 0:07:47]} Ra6 {[%emt 0:03:03]} 17. Nge4 {[%emt 0:02:03]} Nbxc6 {[%emt 0:13:19]} 18. dxc6 {[%emt 0:00:13]} Bxc6 {[%emt 0:00:14]} 19. Nxc5 {[%emt 0:03:33]} Rb6 {[%emt 0:07:20]} 20. Bxe5 {[%emt 0:01:45]} Rxe5 {[%emt 0:02:03]} 21. Nb3 {[%emt 0:00:23]} Qh4 {[%emt 0:04:39]} 22. Qd4 {[%emt 0:11:21]} Qh6+ {[%emt 0:00:53]} 23. Kb1 {[%emt 0:05:54]} Ra6 {[%emt 0:05:17]} 24. Qc4 {[%emt 0:01:46]} Bb7 {[%emt 0:04:13]} 25. Qb4 {[%emt 0:01:10]} Bc8 {[%emt 0:01:04]} 26. Rxd6 {[%emt 0:06:14]} Bf8 {[%emt 0:00:06]} 27. Rd8 {[%emt 0:00:02]} Bf5+ {[%emt 0:00:54]} 28. Ka1 {[%emt 0:00:15]} Re7 {[%emt 0:02:12]} 29. Qxe7 {[%emt 0:04:31]} 1-0

[Event "15th Lazio Festival 2022"]
[Site "Rome"]
[Date "2022.01.06"]
[Round "6.6"]
[White "De Blasio, Alessandro"]
[Black "Maldonado, Stefano"]
[Result "1-0"]
[ECO "C47"]
[WhiteElo "1934"]
[BlackElo "1916"]
[Annotator "ChessBase"]
[PlyCount "83"]
[EventDate "2022.01.02"]
[EventType "swiss"]
[EventCountry "ITA"]
[SourceTitle "playchess.com"]
[Source "ChessBase"]
[SourceQuality "1"]
[TimeControl "5400+30"]

1. e4 {[%emt 1:31:00]} e5 {[%emt 1:31:00]} 2. Nc3 {[%emt 0:00:30]} Nf6 {[%emt 0:00:30]} 3. g3 {[%emt 0:00:30]} d5 {[%emt 0:00:30]} 4. exd5 {[%emt 0:00:30]} Nxd5 {[%emt 0:00:30]} 5. Bg2 {[%emt 0:00:30]} Nxc3 {[%emt 0:00:30]} 6. bxc3 {[%emt 0:00:30]} Nc6 {[%emt 0:00:30]} 7. Nf3 {[%emt 0:00:30]} Bc5 {[%emt 0:00:30]} 8. O-O {[%emt 0:00:30]} O-O {[%emt 0:00:30]} 9. d3 {[%emt 0:00:30]} Bg4 {[%emt 0:00:30]} 10. h3 {[%emt 0:00:30]} Bh5 {[%emt 0:00:30]} 11. Qe1 {[%emt 0:00:30]} Re8 {[%emt 0:00:30]} 12. Rb1 {[%emt 0:00:30]} Bb6 {[%emt 0:00:30]} 13. a4 {[%emt 0:00:30]} Bg6 {[%emt 0:00:30]} 14. Nd2 {[%emt 0:00:30]} Qe7 {[%emt 0:00:30]} 15. Nc4 {[%emt 0:00:30]} Qe6 {[%emt 0:00:30]} 16. Qe2 {[%emt 0:00:30]} e4 {[%emt 0:00:30]} 17. d4 {[%emt 0:00:30]} Bxd4 {[%emt 0:00:30]} 18. Rxb7 {[%emt 0:00:30]} Bxc3 {[%emt 0:00:30]} 19. Rxc7 {[%emt 0:00:30]} Rac8 {[%emt 0:00:30]} 20. Rxc8 {[%emt 0:00:30]} Rxc8 {[%emt 0:00:30]} 21. Be3 {[%emt 0:00:30]} Nb4 {[%emt 0:00:30]} 22. Rd1 {[%emt 0:00:30]} Qa6 {[%emt 0:00:30]} 23. Bf1 {[%emt 0:00:30]} Qxa4 {[%emt 0:00:30]} 24. Nd6 {[%emt 0:00:30]} Rb8 {[%emt 0:00:30]} 25. Qc4 {[%emt 0:00:30]} Qc6 {[%emt 0:00:30]} 26. Qxc6 {[%emt 0:00:30]} Nxc6 {[%emt 0:00:30]} 27. Nb5 {[%emt 0:00:30]} Bf6 {[%emt 0:00:30]} 28. Nxa7 {[%emt 0:00:30]} Ne5 {[%emt 0:00:30]} 29. c4 {[%emt 0:00:30]} Bf5 {[%emt 0:00:30]} 30. c5 {[%emt 0:00:30]} Ra8 {[%emt 0:00:30]} 31. Nb5 {[%emt 0:00:30]} Bd7 {[%emt 0:00:30]} 32. Nc7 {[%emt 0:00:30]} Rc8 {[%emt 0:00:30]} 33. Nd5 {[%emt 0:00:30]} Bd8 {[%emt 0:00:30]} 34. Kg2 {[%emt 0:00:30]} Be6 {[%emt 0:00:30]} 35. Ba6 {[%emt 0:00:30]} Ra8 {[%emt 0:00:30]} 36. Bb7 {[%emt 0:00:30]} Rb8 37. c6 {[%emt 0:00:30]} Bxd5 {[%emt 0:01:00]} 38. Rxd5 {[%emt 0:00:30]} Bc7 39. Bf4 {[%emt 0:00:30]} Re8 {[%emt 0:01:00]} 40. Bxe5 {[%emt 0:00:30]} Bxe5 {[%emt 0:00:30]} 41. Rxe5 {[%emt 0:00:30]} Rxe5 {[%emt 0:00:30]} 42. c7 {[%emt 0:00:30]} 1-0

[Event "15th Lazio Festival 2022"]
[Site "Rome"]
[Date "2022.01.06"]
[Round "7.3"]
[White "Brozzi, Danilo"]
[Black "Aghayev, Miragha"]
[Result "0-1"]
[ECO "D87"]
[WhiteElo "1728"]
[BlackElo "2393"]
[Annotator "ChessBase"]
[PlyCount "124"]
[EventDate "2022.01.02"]
[EventType "swiss"]
[EventCountry "ITA"]
[SourceTitle "playchess.com"]
[Source "ChessBase"]
[SourceQuality "1"]
[TimeControl "5400+30"]

1. d4 {[%emt 0:00:02]} Nf6 {[%emt 0:08:33]} 2. c4 {[%emt 0:00:14]} g6 {[%emt 0:00:06]} 3. Nc3 {[%emt 0:00:06]} d5 {[%emt 0:00:04]} 4. cxd5 {[%emt 0:00:10]} Nxd5 {[%emt 0:00:05]} 5. e4 {[%emt 0:00:07]} Nxc3 {[%emt 0:00:05]} 6. bxc3 {[%emt 0:00:06]} Bg7 {[%emt 0:00:02]} 7. Bc4 {[%emt 0:00:06]} O-O {[%emt 0:00:05]} 8. Ne2 {[%emt 0:00:20]} c5 {[%emt 0:00:10]} 9. Be3 {[%emt 0:00:03]} Nc6 {[%emt 0:00:05]} 10. O-O {[%emt 0:00:32]} Na5 {[%emt 0:00:20]} 11. Bd3 {[%emt 0:02:09]} b6 {[%emt 0:01:04]} 12. f3 {[%emt 0:05:05]} Qc7 {[%emt 0:00:36]} 13. Rc1 {[%emt 0:02:24]} e5 {[%emt 0:03:35]} 14. Qe1 {[%emt 0:11:30]} Qd6 {[%emt 0:16:59]} 15. d5 {[%emt 0:08:29]} c4 {[%emt 0:01:01]} 16. Bb1 {[%emt 0:00:29]} f5 {[%emt 0:00:09]} 17. g3 {[%emt 0:06:56]} Nb7 {[%emt 0:03:22]} 18. Kg2 {[%emt 0:07:06]} Nc5 {[%emt 0:08:13]} 19. Qd2 {[%emt 0:02:46]} Bd7 {[%emt 0:06:57]} 20. Bc2 {[%emt 0:03:21]} Rf7 {[%emt 0:00:59]} 21. Rb1 {[%emt 0:03:23]} fxe4 {[%emt 0:04:07]} 22. fxe4 {[%emt 0:00:25]} Raf8 {[%emt 0:00:45]} 23. Ng1 {[%emt 0:01:54]} b5 {[%emt 0:05:37]} 24. Rxf7 {[%emt 0:02:19]} Rxf7 {[%emt 0:00:22]} 25. Rf1 {[%emt 0:00:01]} Rxf1 {[%emt 0:00:29]} 26. Kxf1 {[%emt 0:00:08]} a5 {[%emt 0:00:17]} 27. Qf2 {[%emt 0:05:54]} Nb7 {[%emt 0:00:49]} 28. Bd2 {[%emt 0:01:53]} Bf8 {[%emt 0:02:44]} 29. Nf3 {[%emt 0:02:26]} h6 {[%emt 0:10:35]} 30. Bc1 {[%emt 0:01:54]} Bh3+ {[%emt 0:01:46]} 31. Ke1 {[%emt 0:00:43]} Nc5 {[%emt 0:02:23]} 32. Be3 {[%emt 0:01:41]} Nb7 {[%emt 0:01:20]} 33. Qd2 {[%emt 0:00:44]} Qf6 {[%emt 0:01:45]} 34. Qf2 {[%emt 0:00:32]} Bd7 {[%emt 0:01:28]} 35. Nd2 {[%emt 0:00:29]} Qe7 {[%emt 0:02:31]} 36. Nb1 {[%emt 0:03:17]} b4 {[%emt 0:00:42]} 37. Qd2 {[%emt 0:02:03]} Kh7 {[%emt 0:00:38]} 38. Qe2 {[%emt 0:01:29]} Bb5 {[%emt 0:00:59]} 39. Qf2 {[%emt 0:01:33]} Kg8 {[%emt 0:01:21]} 40. Qd2 {[%emt 0:00:13]} Qf7 {[%emt 0:01:47]} 41. Qf2 {[%emt 0:00:47]} Qe7 {[%emt 0:02:08]} 42. Qd2 {[%emt 0:00:10]} g5 {[%emt 0:01:16]} 43. Qf2 {[%emt 0:00:29]} Kg7 {[%emt 0:01:58]} 44. h4 {[%emt 0:00:20]} gxh4 {[%emt 0:02:57]} 45. gxh4 {[%emt 0:00:06]} Qf6 {[%emt 0:00:16]} 46. Qxf6+ {[%emt 0:01:16]} Kxf6 {[%emt 0:00:11]} 47. Kf2 {[%emt 0:00:00]} Bc5 {[%emt 0:01:17]} 48. Bd1 {[%emt 0:00:44]} Ke7 {[%emt 0:04:28]} 49. Kf3 {[%emt 0:00:45]} Bxe3 {[%emt 0:00:38]} 50. Kxe3 {[%emt 0:00:03]} Kd6 {[%emt 0:00:14]} 51. Be2 {[%emt 0:00:38]} Kc5 {[%emt 0:00:10]} 52. Bd1 {[%emt 0:00:28]} Nd6 {[%emt 0:00:33]} 53. Bc2 {[%emt 0:00:20]} Be8 {[%emt 0:00:20]} 54. Kd2 {[%emt 0:03:04]} Bh5 {[%emt 0:00:57]} 55. Ke3 {[%emt 0:00:40]} Nc8 {[%emt 0:00:27]} 56. Kf2 {[%emt 0:01:18]} Ne7 {[%emt 0:00:28]} 57. Ke3 {[%emt 0:02:59]} Ng6 {[%emt 0:00:08]} 58. Nd2 {[%emt 0:00:15]} Nxh4 {[%emt 0:00:13]} 59. d6 {[%emt 0:00:20]} Be8 {[%emt 0:00:22]} 60. Bd1 {[%emt 0:01:10]} Ng2+ {[%emt 0:00:31]} 61. Kf2 {[%emt 0:00:34]} Nf4 {[%emt 0:00:53]} 62. Ke3 {[%emt 0:00:05]} Bb5 {[%emt 0:00:37]} 0-1

[Event "15th Lazio Festival 2022"]
[Site "Rome"]
[Date "2022.01.06"]
[Round "7.4"]
[White "Spada, Dario"]
[Black "De Blasio, Alessandro"]
[Result "0-1"]
[ECO "D00"]
[WhiteElo "1749"]
[BlackElo "1934"]
[Annotator "NA"]
[PlyCount "54"]
[EventDate "2022.01.02"]
[EventType "swiss"]
[EventCountry "ITA"]
[SourceTitle "playchess.com"]
[Source "ChessBase"]
[SourceQuality "1"]
[TimeControl "5400+30"]

1. d4 {[%emt 0:00:03]} d5 {[%emt 0:00:07]} 2. Nc3 {[%emt 0:00:04]} c6 {[%emt 0:00:31]} 3. e3 {[%emt 0:00:07]} Nf6 {[%emt 0:00:15]} 4. Bd3 {[%emt 0:00:06]} Nbd7 {[%emt 0:02:00]} 5. f4 {[%emt 0:00:10]} e6 {[%emt 0:00:08]} 6. a3 {[%emt 0:00:07]} c5 {[%emt 0:00:42]} 7. Nf3 {[%emt 0:00:17]} b6 {[%emt 0:03:24]} 8. Ne5 {[%emt 0:01:24]} Be7 {[%emt 0:08:12]} 9. O-O {[%emt 0:01:08]} Bb7 {[%emt 0:00:41]} 10. Qf3 {[%emt 0:04:34]} g6 {[%emt 0:03:53]} 11. Bd2 {[%emt 0:05:50]} Qc8 {[%emt 0:03:41]} (11... O-O $15) 12. g4 $11 {[%emt 0:16:42]} (12. Be1 {is more appropriate.}) 12... c4 {[%emt 0:12:09]} 13. Be2 {[%emt 0:00:53]} Ne4 {[%emt 0:00:11]} 14. Nxe4 {[%emt 0:01:23]} dxe4 {[%emt 0:00:09]} 15. Qf2 {[%emt 0:00:16]} Bd5 {[%emt 0:02:45]} 16. g5 {[%emt 0:24:23]} h5 {[%emt 0:20:31]} 17. c3 {[%emt 0:23:11]} b5 {[%emt 0:04:25]} 18. b3 {[%emt 0:02:44]} Nb6 {[%emt 0:05:18]} 19. a4 {[%emt 0:02:10]} bxa4 {[%emt 0:01:20]} 20. bxc4 {[%emt 0:02:10]} Nxc4 {[%emt 0:02:35]} 21. Rxa4 {[%emt 0:02:14]} Nxe5 {[%emt 0:04:07]} 22. fxe5 {[%emt 0:00:09]} O-O {[%emt 0:00:11]} 23. Qh4 {[%emt 0:05:09]} Qd8 {[%emt 0:07:56]} 24. Rf6 {[%emt 0:00:44]} Kg7 {[%emt 0:04:32]} 25. Ra1 {[%emt 0:03:07]} Rh8 {[%emt 0:00:50]} 26. Raf1 {[%emt 0:01:31]} Bxf6 {[%emt 0:00:51]} 27. gxf6+ {[%emt 0:01:01]} Kh7 {[%emt 0:00:29]} 0-1

[Event "15th Lazio Festival 2022"]
[Site "Rome"]
[Date "2022.01.06"]
[Round "7.5"]
[White "Maxion, Dirk"]
[Black "Silici, Renato"]
[Result "1-0"]
[ECO "C13"]
[WhiteElo "2089"]
[BlackElo "1727"]
[Annotator "NA"]
[PlyCount "67"]
[EventDate "2022.01.02"]
[EventType "swiss"]
[EventCountry "ITA"]
[SourceTitle "playchess.com"]
[Source "ChessBase"]
[SourceQuality "1"]
[TimeControl "5400+30"]

1. e4 {[%emt 0:00:07]} e6 {[%emt 0:00:05]} 2. d4 {[%emt 0:00:08]} d5 {[%emt 0:00:05]} 3. Nc3 {[%emt 0:00:28]} Nf6 {[%emt 0:00:30]} 4. Bg5 {[%emt 0:01:50]} dxe4 {[%emt 0:04:04]} 5. Nxe4 {[%emt 0:00:12]} Be7 {[%emt 0:00:07]} 6. Bxf6 {[%emt 0:00:35]} Bxf6 {[%emt 0:00:23]} 7. Nf3 {[%emt 0:01:17]} Nc6 {[%emt 0:00:46]} 8. c3 {[%emt 0:01:22]} Be7 {[%emt 0:01:56]} 9. Bb5 {[%emt 0:05:19]} Bd7 {[%emt 0:05:03]} 10. Qe2 {[%emt 0:00:45]} Nb8 {[%emt 0:02:38]} 11. Bd3 {[%emt 0:04:22]} Bc6 {[%emt 0:01:24]} 12. Ne5 {[%emt 0:05:05]} Bf6 {[%emt 0:07:21]} (12... Bd5 $14) 13. Nxc6 {[%emt 0:04:00]} Nxc6 {[%emt 0:00:46]} 14. Bb5 {[%emt 0:00:25]} Qd5 {[%emt 0:02:17]} 15. O-O-O $14 {[%emt 0:03:11]} (15. Bc4 $16 Qf5 16. d5) 15... O-O-O {[%emt 0:04:14]} 16. Kb1 {[%emt 0:06:10]} Ne7 {[%emt 0:07:32]} 17. h4 {[%emt 0:05:10]} Ng6 {[%emt 0:03:20]} 18. g3 {[%emt 0:00:33]} c6 {[%emt 0:05:55]} 19. Bc4 {[%emt 0:00:24]} Qd7 {[%emt 0:01:16]} 20. Qf3 {[%emt 0:02:08]} Qe7 {[%emt 0:05:27]} 21. h5 {[%emt 0:00:52]} Nf8 {[%emt 0:00:48]} 22. Rhe1 {[%emt 0:01:08]} Nd7 {[%emt 0:02:03]} 23. h6 {[%emt 0:02:46]} Rhg8 {[%emt 0:04:11]} 24. hxg7 {[%emt 0:00:22]} Bxg7 {[%emt 0:00:31]} 25. Qxf7 {[%emt 0:00:11]} Qxf7 {[%emt 0:00:40]} 26. Nd6+ {[%emt 0:00:11]} Kc7 {[%emt 0:00:13]} 27. Nxf7 {[%emt 0:00:12]} Rde8 {[%emt 0:02:56]} 28. Ng5 {[%emt 0:04:09]} Nf8 {[%emt 0:04:02]} 29. Bxe6 {[%emt 0:00:41]} Nxe6 {[%emt 0:00:20]} 30. Nxe6+ {[%emt 0:01:02]} Kd6 {[%emt 0:00:13]} 31. Nxg7 {[%emt 0:00:29]} Rxe1 {[%emt 0:00:19]} 32. Nf5+ {[%emt 0:00:11]} Ke6 {[%emt 0:00:11]} 33. Rxe1+ {[%emt 0:00:12]} Kxf5 {[%emt 0:35:24]} 34. Re7 {[%emt 0:00:10]} 1-0